bitfinex/quotes_ETHUSD_20240917
["timestamp","ask_amount","ask_price","bid_price","bid_amount"]
[1726595851301,11.63698225,2371.4,2371.3,0.0397786]
[1726595851723,15.85389225,2371.4,2371.3,0.0397786]
[1726595851925,11.63698225,2371.4,2371.3,0.0397786]
[1726595853230,8.98382,2371.4,2371.3,0.0397786]
[1726595853384,10.64465878,2371.4,2371.3,0.0397786]
[1726595853584,10.64465749,2371.4,2371.3,2.3727786]
[1726595853793,6.42774749,2371.4,2371.3,2.3727786]
[1726595854225,4.21691,2371.4,2371.3,2.3727786]
[1726595854396,6.42774749,2371.4,2371.3,2.3727786]
[1726595855219,4.21677,2371.5,2371.3,2.61005646]
[1726595855730,2.6524522,2371.6,2371.3,2.61005646]
[1726595855891,0.44161471,2371.6,2371.4,4.21682]
[1726595856091,0.44161471,2371.6,2371.5,6.65294]
[1726595856294,0.44161471,2371.6,2371.5,12.38429197]
[1726595856742,4.21567,2372.1,2371.7,4.21636]
[1726595856886,4.21567,2372.1,2371.8,2.2986]
[1726595857090,4.21567,2372.1,2371.9,0.651496]
[1726595858299,4.65723539,2372.2,2371.9,0.651496]
[1726595858813,8.87287539,2372.2,2372.0,2.4052]
[1726595859133,0.44157539,2372.2,2372.0,2.4052]
[1726595859336,4.65707539,2372.2,2372.1,0.3056696]
[1726595860831,4.21567,2372.1,2372.0,2.4052]
[1726595861136,4.21588,2372.0,2371.7,2.397]
[1726595861342,6.84917867,2372.2,2371.7,2.397]
[1726595861524,8.4324,2371.8,2371.7,2.397]
[1726595861722,4.2162,2371.8,2371.7,2.397]
[1726595863414,4.21605,2371.9,2371.7,2.397]
[1726595863612,4.21605,2371.9,2371.7,2.6367]
[1726595863997,4.21605,2371.9,2371.7,2.397]
[1726595864397,4.2162,2371.8,2371.7,2.397]
[1726595868943,3.7162,2371.8,2371.7,2.397]
[1726595869134,4.21607,2371.9,2371.7,2.397]
[1726595869338,3.71595,2372.0,2371.7,2.397]
[1726595869581,4.2158,2372.1,2371.8,0.66978022]
[1726595869734,4.21588,2372.0,2371.8,0.66978022]
[1726595869935,4.2161,2371.9,2371.7,2.397]
[1726595871369,4.21586,2372.0,2371.7,2.397]
[1726595872087,4.21579,2372.1,2371.7,2.397]
[1726595872291,4.65717539,2372.2,2371.9,2.4608]
[1726595872476,4.65717539,2372.2,2372.0,0.24608]
[1726595872846,0.44157539,2372.2,2372.1,6.67647]
[1726595873051,7.42,2372.7,2372.3,2.4608]
[1726595873247,4.21454,2372.8,2372.5,2.4859]
[1726595873569,4.21478,2372.7,2372.5,2.4859]
[1726595874351,2.2629,2372.8,2372.3,2.4859]
[1726595874692,4.21498,2372.5,2372.3,2.57019788]
[1726595874892,4.21498,2372.5,2372.3,2.81298837]
[1726595876411,8.43003,2372.5,2372.3,2.81298837]
[1726595876617,4.21498,2372.5,2372.3,2.81298837]
[1726595877576,8.43003,2372.5,2372.3,2.81298837]
[1726595878808,4.21514,2372.4,2372.3,2.81298837]
[1726595880278,4.21559,2372.2,2372.1,2.4198]
[1726595880920,4.21543,2372.3,2371.8,2.4198]
[1726595880921,4.21602,2371.9,2371.8,2.4198]
[1726595881522,4.21602,2371.9,2371.8,2.66178]
[1726595882415,4.21591,2372.0,2371.8,2.66178]
[1726595882615,4.21575,2372.1,2371.8,2.66178]
[1726595882822,4.21587,2372.0,2371.8,2.66178]
[1726595882999,4.21575,2372.1,2371.9,0.266178]
[1726595883383,4.21585,2372.0,2371.9,0.266178]
[1726595884622,2.466,2372.5,2371.9,0.266178]
[1726595884829,4.21559,2372.2,2371.9,0.266178]
[1726595885237,4.21585,2372.0,2371.9,0.266178]
[1726595885750,8.43161,2372.1,2371.9,0.266178]
[1726595885925,4.21579,2372.1,2371.9,0.266178]
[1726595886750,8.43157,2372.1,2371.9,0.266178]
[1726595887252,4.21602,2371.9,2371.6,2.2637]
[1726595887462,4.21621,2371.8,2371.6,2.2637]
[1726595887610,4.21602,2371.9,2371.6,2.2637]
[1726595887810,8.43222,2371.9,2371.6,2.2637]
[1726595888042,8.43213,2371.9,2371.6,2.911745]
[1726595888550,8.43215,2371.9,2371.6,2.911745]
[1726595888754,8.43215,2371.9,2371.4,2.2637]
[1726595888755,4.21674,2371.5,2371.4,2.2637]
[1726595889056,4.21674,2371.5,2371.3,0.0397786]
[1726595889206,4.21691,2371.4,2371.3,0.0397786]
[1726595889409,4.21674,2371.5,2371.3,0.0397786]
[1726595890254,4.21658,2371.6,2371.3,0.27012646]
[1726595890413,4.21676,2371.5,2371.3,0.27012646]
[1726595890610,4.21658,2371.6,2371.3,0.27012646]
[1726595891110,8.43324,2371.6,2371.3,0.27012646]
[1726595891306,4.21691,2371.4,2371.3,0.0397786]
[1726595894151,8.43382,2371.4,2371.3,0.0397786]
[1726595894308,4.21691,2371.4,2371.3,0.0397786]
[1726595897211,4.21683,2371.5,2371.3,0.0397786]
[1726595897417,4.21666,2371.6,2371.4,6.39130328]
[1726595897809,4.21652,2371.7,2371.4,6.39130328]
[1726595898014,4.21616,2371.9,2371.4,6.39130328]
[1726595898263,6.42272275,2372.1,2371.5,0.64310819]
[1726595898427,2.20691275,2372.1,2371.4,2.392]
[1726595898620,4.21674,2371.5,2371.3,0.0397786]
[1726595899216,4.21691,2371.4,2371.3,0.0397786]
[1726595900458,8.43382,2371.4,2371.3,0.0397786]
[1726595900759,4.21691,2371.4,2371.3,0.0397786]
[1726595901345,8.43356,2371.5,2371.3,0.0397786]
[1726595901660,4.21674,2371.5,2371.3,0.0397786]
[1726595901818,4.21674,2371.5,2371.3,0.68288679]
[1726595902415,4.21652,2371.7,2371.3,0.68288679]
[1726595902727,4.21659,2371.6,2371.4,0.08432962]
[1726595902932,4.21659,2371.6,2371.3,0.76721776]
[1726595903132,4.21659,2371.6,2371.4,1.1375651]
[1726595903460,4.21646,2371.7,2371.5,2.2753]
[1726595903845,4.21656,2371.6,2371.3,3.13178679]
[1726595904054,8.43321,2371.6,2371.4,0.71310901]
[1726595904212,8.43324,2371.6,2371.4,0.71310901]
[1726595904550,4.21656,2371.6,2371.4,0.71310901]
[1726595904953,8.43323,2371.6,2371.4,0.71310901]
[1726595906151,4.21691,2371.4,2371.3,0.68288679]
[1726595906334,4.21691,2371.4,2371.3,0.0397786]
[1726595907535,8.43382,2371.4,2371.3,0.0397786]
[1726595909739,12.65073,2371.4,2371.3,0.0397786]
[1726595910139,8.43382,2371.4,2371.3,0.0397786]
[1726595913841,4.21691,2371.4,2371.3,0.0397786]
[1726595914051,4.21691,2371.4,2371.3,0.96957679]
[1726595914254,8.43359,2371.5,2371.3,0.3397786]
[1726595914471,4.21691,2371.4,2371.3,0.3397786]
[1726595918372,4.21626,2371.8,2371.4,2.4705]
[1726595918533,4.21652,2371.7,2371.5,0.31102786]
[1726595918735,4.21656,2371.6,2371.5,0.31102786]
[1726595922483,4.21652,2371.7,2371.5,0.31102786]
[1726595922689,8.43301,2371.7,2371.5,0.31102786]
[1726595923006,4.21656,2371.6,2371.5,0.31102786]
[1726595923561,6.86467178,2371.9,2371.5,0.31102786]
[1726595923796,4.65777866,2371.9,2371.7,2.2788]
[1726595924107,4.65777866,2371.9,2371.8,0.62781033]
[1726595925016,0.44159866,2371.9,2371.8,4.62711361]
[1726595925771,4.21575,2372.1,2371.8,4.62711361]
[1726595929116,4.2159,2372.0,2371.8,0.62781033]
[1726595929274,4.21612,2371.9,2371.7,2.2788]
[1726595929481,4.21612,2371.9,2371.5,2.60892786]
[1726595929709,4.2162,2371.8,2371.5,2.60892786]
[1726595929906,4.21603,2371.9,2371.6,1.08250211]
[1726595934623,6.42276312,2372.0,2371.6,9.29828539]
[1726595934775,4.21587,2372.0,2371.7,2.3401]
[1726595934978,6.42272312,2372.1,2371.8,1.16383854]
[1726595935230,4.21585,2372.0,2371.8,1.16383854]
[1726595936078,4.21602,2371.9,2371.8,1.16383854]
[1726595936999,4.21585,2372.0,2371.8,1.16383854]
[1726595937229,4.21602,2371.9,2371.8,1.16383854]
[1726595937395,4.21602,2371.9,2371.7,2.3401]
[1726595937596,4.21602,2371.9,2371.5,6.83543786]
[1726595937793,4.21621,2371.8,2371.5,2.61872786]
[1726595937993,4.21645,2371.7,2371.5,2.61872786]
[1726595938241,2.437,2371.8,2371.5,2.61872786]
[1726595938242,4.21625,2371.8,2371.5,2.61872786]
[1726595938402,4.21625,2371.8,2371.6,0.26187279]
[1726595940553,6.42518648,2372.0,2371.6,8.47773607]
[1726595940710,4.21595,2372.0,2371.6,12.69418607]
[1726595941051,4.21595,2372.0,2371.8,2.484]
[1726595941346,2.20892404,2372.2,2371.9,4.21594]
[1726595941531,4.21532,2372.3,2372.0,3.99930328]
[1726595941532,8.43077,2372.3,2372.0,3.99930328]
[1726595941734,4.21532,2372.3,2372.0,3.99930328]
[1726595941906,8.43074,2372.3,2372.0,5.07767253]
[1726595942409,4.21549,2372.2,2372.0,5.07767253]
[1726595942608,2.20892404,2372.4,2372.0,5.07767253]
[1726595942855,4.21505,2372.5,2372.1,2.40160368]
[1726595943008,4.21505,2372.5,2372.2,1.16949762]
[1726595943204,4.21515,2372.4,2372.2,1.16949762]
[1726595943754,4.21503,2372.5,2372.2,5.1688009]
[1726595943937,4.21483,2372.6,2372.3,0.74861009]
[1726595944163,3.71483,2372.6,2372.3,0.83290938]
[1726595944466,3.71483,2372.6,2372.3,0.74861009]
[1726595944626,3.21483,2372.6,2372.3,0.74861009]
[1726595945428,4.21464,2372.7,2372.4,2.423]
[1726595945671,4.21479,2372.6,2372.4,3.68700984]
[1726595945855,4.21462,2372.7,2372.4,3.68700984]
[1726595947662,4.21462,2372.7,2372.4,7.68631312]
[1726595947981,4.21462,2372.7,2372.5,0.85192206]
[1726595948948,4.21443,2372.8,2372.5,0.85192206]
[1726595949566,0.44151766,2372.9,2372.5,0.85192206]
[1726595949567,4.21461,2372.7,2372.5,0.85192206]
[1726595950783,4.21461,2372.7,2372.4,3.68700984]
[1726595951784,4.2148,2372.6,2372.4,3.68700984]
[1726595953440,0.44151766,2372.9,2372.4,3.68700984]
[1726595953741,4.65581766,2372.9,2372.6,3.99930328]
[1726595953940,4.2143,2372.9,2372.7,3.10014217]
[1726595954246,8.42867,2372.9,2372.7,3.10014217]
[1726595954549,4.21405,2373.1,2372.7,3.10014217]
[1726595954755,4.21419,2373.0,2372.7,3.10014217]
[1726595954970,4.21428,2372.9,2372.7,3.10014217]
[1726595955775,8.42829,2373.0,2372.7,3.10014217]
[1726595955982,4.21428,2372.9,2372.7,3.10014217]
[1726595956784,4.21443,2372.8,2372.5,2.2566]
[1726595957451,4.21461,2372.7,2372.5,2.2566]
[1726595957778,4.21461,2372.7,2372.3,6.47188]
[1726595957991,4.21485,2372.6,2372.3,2.2566]
[1726595958284,4.21485,2372.6,2372.3,3.2038]
[1726595958435,4.21496,2372.5,2372.1,9.60433]
[1726595958636,4.21496,2372.5,2372.1,6.60424]
[1726595958841,6.69336,2372.5,2372.1,2.3887]
[1726595959110,6.69336,2372.5,2372.1,6.60435]
[1726595959314,10.90847,2372.5,2372.2,1.48194633]
[1726595959483,10.90847,2372.5,2372.1,2.3887]
[1726595959672,4.21518,2372.4,2372.1,2.3887]
[1726595960012,4.2154,2372.3,2372.1,2.3887]
[1726595960214,4.21533,2372.3,2371.9,2.3718]
[1726595960777,8.43074,2372.3,2371.9,2.3718]
[1726595961015,4.21533,2372.3,2371.9,2.3718]
[1726595961871,4.21508,2372.5,2372.1,6.65586]
[1726595962178,4.21508,2372.5,2372.2,1.06551633]
[1726595962712,4.21481,2372.6,2372.2,1.06551633]
[1726595962880,4.21497,2372.5,2372.2,1.06551633]
[1726595963773,11.63462,2372.7,2372.3,0.08429751]
[1726595964114,11.63462,2372.7,2372.3,1.68632722]
[1726595964315,15.84936,2372.7,2372.4,2.3561]
[1726595964474,8.42936,2372.7,2372.4,2.3561]
[1726595964824,4.21481,2372.6,2372.4,2.3561]
[1726595966416,4.21464,2372.7,2372.4,2.3561]
[1726595966625,4.21464,2372.7,2372.4,3.9949133]
[1726595966909,8.42935,2372.7,2372.4,2.3561]
[1726595967076,4.21464,2372.7,2372.4,2.3561]
[1726595967914,8.42937,2372.7,2372.4,2.3561]
[1726595968074,4.21464,2372.7,2372.4,2.3561]
[1726595968782,4.21444,2372.8,2372.4,10.57053328]
[1726595968986,4.21444,2372.8,2372.5,1.47858433]
[1726595969298,4.21444,2372.8,2372.4,6.35540328]
[1726595970377,4.21444,2372.8,2372.4,10.57053328]
[1726595971321,4.21444,2372.8,2372.4,6.35540328]
[1726595971480,4.2146,2372.7,2372.4,2.3561]
[1726595973036,6.48867,2372.6,2372.1,2.4014]
[1726595973209,6.48867,2372.6,2372.1,6.61692]
[1726595973210,4.21504,2372.5,2372.1,6.61692]
[1726595974634,6.48859,2372.6,2372.2,4.21544]
[1726595974937,8.42974,2372.6,2372.2,4.21544]
[1726595975630,4.21498,2372.5,2372.1,6.61703]
[1726595975829,4.21498,2372.5,2372.1,8.40024533]
[1726595976039,4.21482,2372.6,2372.2,8.2990818]
[1726595976203,4.21482,2372.6,2372.3,0.08429726]
[1726595977428,4.21482,2372.6,2372.3,1.75422985]
[1726595978252,4.21482,2372.6,2372.3,5.96953985]
[1726595978401,4.21482,2372.6,2372.4,2.4616]
[1726595979300,4.21464,2372.7,2372.4,2.4616]
[1726595979738,4.21453,2372.8,2372.4,6.76102735]
[1726595979943,4.21453,2372.8,2372.5,1.26462499]
[1726595981014,6.86536986,2373.0,2372.6,4.08359251]
[1726595981217,6.86536986,2373.0,2372.5,5.47954499]
[1726595981218,4.21435,2372.9,2372.5,5.47954499]
[1726595981840,6.86536986,2373.0,2372.5,5.47947499]
[1726595982039,6.86536986,2373.0,2372.6,0.08428502]
[1726595982348,4.21425,2372.9,2372.6,0.08428502]
[1726595982521,4.21425,2372.9,2372.6,1.28675135]
[1726595984165,4.21425,2372.9,2372.7,2.4722]
[1726595984862,4.21425,2372.9,2372.6,1.20246633]
[1726595985029,2.21182956,2372.8,2372.7,0.3]
[1726595985702,6.42607956,2372.9,2372.7,0.3]
[1726595988157,4.21425,2372.9,2372.7,0.3]
[1726595988356,2.21316534,2372.8,2372.7,0.3]
[1726595989154,2.21316534,2372.8,2372.7,0.6]
[1726595989670,6.42741534,2372.9,2372.7,0.6]
[1726595990067,2.21316534,2372.8,2372.7,0.6]
[1726595990267,6.42759534,2372.8,2372.7,0.6]
[1726595990502,2.21316534,2372.8,2372.7,0.6]
[1726595991017,6.42742534,2372.9,2372.7,0.6]
[1726595991216,2.21316534,2372.8,2372.7,0.6]
[1726595991583,6.42742534,2372.9,2372.7,0.6]
[1726595992321,2.21316534,2372.8,2372.7,0.6]
[1726595992520,6.42742534,2372.9,2372.7,0.6]
[1726595993233,2.21316534,2372.9,2372.7,0.9]
[1726595993614,6.42742534,2372.9,2372.7,0.9]
[1726595994669,4.21426,2372.9,2372.7,0.9]
[1726595994802,6.42768641,2372.9,2372.7,0.9]
[1726595995538,2.21342641,2372.9,2372.7,0.9]
[1726595995846,6.42768641,2372.9,2372.7,0.9]
[1726595997126,2.21342641,2372.9,2372.7,0.9]
[1726595997423,2.21342641,2372.8,2372.7,1.2]
[1726595998609,8.86978272,2373.0,2372.7,1.2]
[1726595998610,2.21342641,2372.9,2372.7,1.2]
[1726595999022,1.77065028,2372.8,2372.7,1.2]
[1726595999451,6.42769641,2372.9,2372.7,1.2]
[1726595999656,6.42771703,2372.9,2372.7,1.2]
[1726596000220,2.21344703,2372.8,2372.7,1.2]
[1726596000917,18.58289,2372.8,2372.7,0.75]
[1726596001192,22.79732,2372.8,2372.7,0.75]
[1726596001402,22.242638,2372.8,2372.7,0.75]
[1726596001554,18.58289,2372.8,2372.7,0.75]
[1726596002096,26.457068,2372.8,2372.7,0.75]
[1726596002281,7.78775402,2372.8,2371.3,2.3716786]
[1726596002604,7.78775402,2372.8,2371.4,0.08433646]
[1726596002605,1.77022071,2371.7,2371.4,0.08433646]
[1726596002749,1.77022071,2371.8,2371.4,6.54879]
[1726596002951,5.98644071,2371.8,2371.4,2.3319]
[1726596003178,5.98644071,2371.8,2371.3,0.0397786]
[1726596003179,5.98671071,2371.7,2371.3,0.0397786]
[1726596003362,4.21656,2371.6,2371.3,1.51235679]
[1726596003584,4.2169,2371.5,2371.3,0.0397786]
[1726596003753,4.21691,2371.4,2371.3,0.0397786]
[1726596005195,4.2169,2371.5,2371.3,0.0397786]
[1726596005398,8.4338,2371.5,2371.3,0.0397786]
[1726596005560,4.2169,2371.5,2371.3,0.0397786]
[1726596005890,4.21688,2371.5,2371.3,0.0397786]
[1726596006394,4.21691,2371.4,2371.3,0.0397786]
[1726596006597,11.30272,2371.4,2371.3,0.0397786]
[1726596006761,6.53581,2371.4,2371.3,0.0397786]
[1726596006955,4.21691,2371.4,2371.3,0.0397786]
[1726596007312,5.98696071,2371.5,2371.3,0.0397786]
[1726596007461,2.4202,2371.6,2371.3,0.0397786]
[1726596007966,4.21691,2371.4,2371.3,0.0397786]
[1726596008386,8.98382,2371.4,2371.3,0.0397786]
[1726596008657,4.21691,2371.4,2371.3,0.0397786]
[1726596008970,4.21674,2371.5,2371.3,0.0397786]
[1726596009157,4.2163,2371.8,2371.4,2.2559]
[1726596009356,4.2163,2371.8,2371.4,3.30711519]
[1726596009899,2.4023,2371.9,2371.4,11.52323847]
[1726596009900,4.21611,2371.9,2371.4,11.52323847]
[1726596010100,4.21611,2371.9,2371.5,1.57800071]
[1726596012109,4.2162,2371.8,2371.5,1.57800071]
[1726596012280,4.2162,2371.8,2371.4,3.30711519]
[1726596012962,4.21603,2371.9,2371.4,7.52392519]
[1726596013171,4.21603,2371.9,2371.4,11.52322847]
[1726596013372,4.21597,2372.0,2371.5,4.21665]
[1726596013603,4.21575,2372.1,2371.6,3.99930328]
[1726596013901,7.42,2372.2,2371.8,6.25430328]
[1726596014117,7.42,2372.6,2372.1,6.68379]
[1726596014294,4.21504,2372.5,2372.2,3.99930328]
[1726596014464,11.63487,2372.6,2372.2,3.99930328]
[1726596014901,11.63487,2372.6,2372.2,4.930542]
[1726596015412,4.21425,2372.9,2372.5,2.4682]
[1726596015662,4.21455,2372.8,2372.5,2.4682]
[1726596016616,4.21425,2372.9,2372.5,2.4682]
[1726596016863,1.77022071,2373.0,2372.5,7.75127533]
[1726596017063,7.42,2373.3,2372.8,3.99930328]
[1726596017360,4.21351,2373.4,2372.9,4.21421]
[1726596017563,4.21375,2373.2,2372.7,4.21445]
[1726596018016,4.21348,2373.4,2372.8,3.99930328]
[1726596018222,4.21319,2373.5,2373.0,6.31270328]
[1726596018537,4.21313,2373.6,2373.2,3.99930328]
[1726596018538,4.21304,2373.6,2373.2,3.99930328]
[1726596019423,8.42615,2373.6,2373.2,3.99930328]
[1726596019625,2.3303,2373.8,2373.2,5.06037949]
[1726596019626,6.54308,2373.8,2373.2,5.06037949]
[1726596019945,2.3303,2373.8,2373.0,10.52668328]
[1726596020259,4.21327,2373.5,2373.0,6.52738]
[1726596020671,4.21327,2373.5,2373.0,10.52668328]
[1726596022240,4.21306,2373.6,2373.0,10.52668328]
[1726596022425,4.21283,2373.7,2373.2,8.21285328]
[1726596022863,4.21283,2373.7,2373.2,12.42647328]
[1726596023020,4.21283,2373.7,2373.2,8.21285328]
[1726596023426,4.21302,2373.6,2373.0,6.52735]
[1726596023752,4.634482,2373.5,2373.0,6.52734]
[1726596023938,4.21318,2373.5,2373.0,6.52734]
[1726596024138,4.21302,2373.6,2373.0,10.52660328]
[1726596024637,4.21302,2373.6,2373.2,4.2137]
[1726596024843,4.21302,2373.6,2373.0,10.52660328]
[1726596025051,4.21336,2373.4,2373.0,10.52660328]
[1726596025236,4.2132,2373.5,2373.0,14.74059328]
[1726596025442,4.21337,2373.4,2373.0,6.5273]
[1726596026467,4.2132,2373.5,2373.0,10.74126]
[1726596026634,4.2132,2373.5,2373.0,12.21531633]
[1726596026835,4.2132,2373.5,2373.0,8.00135633]
[1726596027365,4.2132,2373.5,2373.0,12.21528633]
[1726596027570,4.2132,2373.5,2373.0,12.21533633]
[1726596027765,4.2132,2373.5,2373.1,4.21389]
[1726596027969,4.2132,2373.5,2373.0,8.00135633]
[1726596028143,4.21438,2372.9,2372.7,2.2997]
[1726596028339,6.51466,2373.3,2372.4,11.49513]
[1726596028340,2.3011,2373.3,2372.4,2.2997]
[1726596028570,4.21511,2372.5,2372.0,4.21576]
[1726596028843,4.21481,2372.6,2372.1,6.54019]
[1726596029036,8.42948,2372.7,2372.2,4.21541]
[1726596029279,4.21473,2372.7,2372.2,4.21541]
[1726596029484,4.21487,2372.6,2372.1,6.54018]
[1726596029664,8.42977,2372.6,2372.1,7.59412833]
[1726596029866,4.21487,2372.6,2372.1,7.59412833]
[1726596030072,4.21487,2372.6,2372.2,4.21545]
[1726596030269,4.21458,2372.8,2372.3,3.99930328]
[1726596030650,4.21468,2372.7,2372.4,0.39993033]
[1726596030802,4.21451,2372.8,2372.2,4.21547]
[1726596031099,4.2147,2372.7,2372.2,4.21547]
[1726596031305,4.2147,2372.7,2372.3,4.21529]
[1726596031486,4.21451,2372.8,2372.5,2.3071]
[1726596031798,4.21417,2373.0,2372.5,6.52197]
[1726596031968,8.42833,2373.0,2372.6,0.08428645]
[1726596032170,4.21429,2372.9,2372.5,6.52197]
[1726596033082,4.21445,2372.8,2372.5,2.3071]
[1726596033657,2.4259,2372.7,2371.9,2.3274]
[1726596033857,4.21551,2372.2,2371.9,2.3274]
[1726596034079,4.2148,2372.6,2372.1,4.21563]
[1726596034252,4.21497,2372.5,2371.9,10.54258328]
[1726596034462,4.21497,2372.5,2372.0,1.05425833]
[1726596034771,4.21478,2372.6,2372.0,1.05425833]
[1726596034971,4.21486,2372.6,2372.1,4.21566]
[1726596035168,6.64062,2372.7,2372.1,8.43121]
[1726596035368,6.64062,2372.7,2372.2,2.4007]
[1726596035369,8.42948,2372.7,2372.2,2.4007]
[1726596035603,8.42948,2372.7,2372.2,3.16775083]
[1726596035794,4.21478,2372.6,2372.2,3.16775083]
[1726596036313,0.44097087,2372.8,2372.4,8.43026]
[1726596036608,0.44097087,2372.8,2372.4,4.21504]
[1726596036767,0.44097087,2372.8,2372.5,2.4174]
[1726596037862,0.44097087,2372.8,2372.3,5.4254]
[1726596038060,4.21469,2372.7,2372.3,2.4254]
[1726596038293,4.2148,2372.6,2372.3,2.4254]
[1726596038522,4.21469,2372.7,2372.3,3.089476]
[1726596038737,4.21469,2372.7,2372.3,3.17377289]
[1726596038895,4.21481,2372.6,2372.3,3.089476]
[1726596039098,8.42945,2372.7,2372.3,3.089476]
[1726596040321,4.21469,2372.7,2372.3,2.4254]
[1726596040537,4.21481,2372.6,2372.3,2.4254]
[1726596040738,4.21469,2372.7,2372.3,2.4254]
[1726596040941,8.42942,2372.7,2372.3,2.4254]
[1726596041152,4.21469,2372.7,2372.3,2.4254]
[1726596041445,0.44097087,2372.8,2372.4,4.88753669]
[1726596041646,0.44097087,2372.8,2372.4,9.10258669]
[1726596042009,0.44097087,2372.8,2372.5,4.21496]
[1726596042807,0.44097087,2372.8,2372.5,4.29924641]
[1726596043250,0.44097087,2372.8,2372.5,4.21496]
[1726596043549,0.44097087,2372.8,2372.6,0.48874667]
[1726596044401,0.44097087,2372.8,2372.7,2.3239]
[1726596044941,0.44097087,2372.8,2372.6,0.48874667]
[1726596045148,0.44097087,2372.8,2372.6,0.57303249]
[1726596045517,4.21386,2373.2,2372.6,0.57303249]
[1726596045518,4.21391,2373.1,2372.6,0.57303249]
[1726596045768,11.63365,2373.3,2372.9,3.99930328]
[1726596045978,8.98322071,2373.7,2373.3,2.3239]
[1726596045979,11.63294,2373.7,2373.3,2.3239]
[1726596046185,11.63294,2373.7,2373.3,2.40816088]
[1726596046600,11.63294,2373.7,2373.3,2.3239]
[1726596046770,15.84587,2373.7,2373.3,2.3239]
[1726596047082,14.4946,2373.9,2373.4,0.08426098]
[1726596047083,4.21266,2373.8,2373.4,0.08426098]
[1726596047991,4.21257,2373.9,2373.4,0.08426098]
[1726596048147,4.21257,2373.9,2373.3,11.20912101]
[1726596048485,4.21289,2373.7,2373.4,0.08425705]
[1726596048783,8.42556,2373.8,2373.4,0.08425705]
[1726596048978,8.42555,2373.8,2373.4,0.08425705]
[1726596049685,4.21303,2373.6,2373.3,2.3239]
[1726596049988,8.42579,2373.7,2373.3,2.3239]
[1726596050484,8.42584,2373.7,2373.3,2.3239]
[1726596050702,4.2126,2373.9,2373.5,3.99930328]
[1726596050842,4.2126,2373.9,2373.4,0.23239]
[1726596051047,4.2127,2373.8,2373.4,0.23239]
[1726596051261,8.42522,2373.9,2373.4,4.44559]
[1726596051467,4.21256,2373.9,2373.5,1.49821833]
[1726596051695,8.42513,2373.9,2373.5,1.49821833]
[1726596052047,8.42519,2373.9,2373.5,1.49821833]
[1726596052359,4.21266,2373.8,2373.5,1.49821833]
[1726596052561,4.21284,2373.7,2373.4,0.23239]
[1726596052762,4.21284,2373.7,2373.3,6.53729]
[1726596053337,4.21256,2373.9,2373.3,6.53729]
[1726596053338,4.21265,2373.8,2373.3,6.53729]
[1726596054323,4.21293,2373.7,2373.3,2.3239]
[1726596054532,4.21329,2373.5,2373.0,4.21399]
[1726596054714,4.21327,2373.5,2373.1,2.2744]
[1726596055224,4.21293,2373.7,2373.2,4.21361]
[1726596055394,4.21293,2373.7,2373.3,1.04873133]
[1726596055581,4.21292,2373.7,2373.3,1.04873133]
[1726596055806,4.21303,2373.6,2373.3,1.04873133]
[1726596056095,4.21303,2373.6,2373.2,4.51361]
[1726596056299,4.21319,2373.5,2373.2,0.3]
[1726596057124,4.21268,2373.8,2373.2,0.3]
[1726596057125,8.42708,2373.3,2373.2,0.3]
[1726596059599,14.41084071,2373.3,2373.2,0.3]
[1726596059813,14.83814245,2373.3,2373.2,0.3]
[1726596059992,14.40522841,2373.3,2373.2,0.6]
[1726596060340,14.40514322,2373.3,2373.2,0.6]
[1726596060637,14.40533745,2373.3,2373.2,0.6]
[1726596061428,10.19179745,2373.3,2373.2,0.6]
[1726596061797,8.42708,2373.3,2373.2,0.6]
[1726596061998,10.63286522,2373.3,2373.2,0.6]
[1726596062443,15.01962,2373.3,2373.2,0.6]
[1726596062640,13.80608,2373.3,2373.2,0.6]
[1726596063126,18.46058505,2373.3,2373.2,0.6]
[1726596063531,19.45127975,2373.3,2373.2,0.6]
[1726596063729,22.09822202,2373.3,2373.2,0.6]
[1726596064026,19.45127975,2373.3,2373.2,0.6]
[1726596064240,22.09822202,2373.3,2373.2,0.9]
[1726596064797,19.45127975,2373.3,2373.2,0.9]
[1726596065002,22.09896944,2373.3,2373.2,0.9]
[1726596065397,19.45127975,2373.3,2373.2,0.9]
[1726596065646,21.65827474,2373.3,2373.2,0.9]
[1726596066312,19.01058505,2373.3,2373.2,0.9]
[1726596067748,25.87181474,2373.3,2373.2,0.9]
[1726596067944,27.87136281,2373.3,2373.2,0.9]
[1726596068152,32.08586882,2373.3,2373.2,0.45]
[1726596068357,28.99680349,2373.3,2373.2,0.45]
[1726596068853,22.7555,2372.7,2372.6,0.6]
[1726596069056,26.75480328,2372.7,2372.6,0.6]
[1726596069656,29.4016467,2372.7,2372.6,0.6]
[1726596069803,25.84445701,2372.7,2372.6,0.6]
[1726596070006,27.6815366,2372.7,2372.6,0.6]
[1726596071604,18.5409,2372.7,2372.6,0.6]
[1726596071799,14.9909,2372.7,2372.6,0.6]
[1726596072005,16.75417852,2372.7,2372.6,0.6]
[1726596072222,16.75386397,2372.7,2372.6,0.6]
[1726596072420,16.75381335,2372.7,2372.6,0.6]
[1726596072672,16.75386588,2372.7,2372.6,0.6]
[1726596072825,17.1945671,2372.7,2372.6,0.6]
[1726596073030,20.1945671,2372.7,2372.6,0.6]
[1726596074041,27.6815366,2372.7,2372.6,0.6]
[1726596074242,22.7555,2372.7,2372.6,0.6]
[1726596077392,18.5409,2372.7,2372.6,0.6]
[1726596077597,17.8458906,2372.7,2372.6,0.6]
[1726596077759,10.19068889,2372.7,2372.6,0.6]
[1726596077958,8.4292,2372.7,2372.6,0.6]
[1726596078353,8.87022651,2372.7,2372.6,0.6]
[1726596079001,11.4292,2372.7,2372.6,0.6]
[1726596079258,4.2146,2372.7,2372.6,3.083]
[1726596079659,8.4292,2372.7,2372.6,3.083]
[1726596080217,4.2146,2372.7,2372.6,3.083]